fUSD/lending_fUSD_20241219
["ID","MTS","AMOUNT","RATE_DAILY","PERIOD"]
[346011786,1734623444963,-1811.14,0.00024929,4]
[346011787,1734623444972,-2017.18,0.00024929,4]
[346011788,1734623444982,-204.4,0.00024931,4]
[346011789,1734623444991,-488.96254375,0.00024931,4]
[346011790,1734623445001,-500.0,0.00024931,4]
[346011791,1734623445010,-635.96,0.00024931,4]
[346011792,1734623445019,-522.98,0.00024931,4]
[346011793,1734623445029,-593.22,0.00024931,4]
[346011794,1734623445038,-754.73,0.00024931,4]
[346011795,1734623445047,-472.56,0.00024931,4]
[346011796,1734623445057,-783.85,0.00024931,4]
[346011797,1734623445066,-843.2,0.00024931,4]
[346011798,1734623445076,-998.34,0.00024931,4]
[346011799,1734623445085,-626.26289045,0.00024931,4]
[346011800,1734623445096,-1465.39,0.00024931,4]
[346011801,1734623445107,-676.41,0.00024931,4]
[346011802,1734623445117,-500.0,0.00024931,4]
[346011803,1734623445127,-506.74,0.00024931,4]
[346011804,1734623445136,-1117.63,0.00024931,4]
[346011805,1734623445146,-1309.44,0.00024931,4]
[346011806,1734623445158,-1745.38,0.00024931,4]
[346011807,1734623445168,-500.0,0.00024931,4]
[346011808,1734623445178,-569.0,0.00024931,4]
[346011809,1734623445188,-609.6,0.00024931,4]
[346011810,1734623445198,-500.0,0.00024931,4]
[346011811,1734623445208,-31943.0,0.00024986,2]
[346011812,1734623445218,-950.5464,0.0002499,2]
[346011813,1734623445228,-1278.6694458,0.00024995,2]
[346011814,1734623445238,-1278.6694458,0.00024995,2]
[346011815,1734623445248,-1278.6694458,0.00024995,2]
[346011816,1734623445258,-1278.6694458,0.00024995,2]
[346011817,1734623445267,-1278.6694458,0.00024995,2]
[346011818,1734623445277,-1278.6694458,0.00024995,2]
[346011819,1734623445287,-853.1815735,0.00024995,2]
[346011820,1734623445296,-853.1815735,0.00024995,2]
[346011821,1734623445306,-853.1815735,0.00024995,2]
[346011822,1734623445315,-853.1815735,0.00024995,2]
[346011823,1734623445325,-853.1815735,0.00024995,2]
[346011824,1734623445335,-853.1815735,0.00024995,2]
[346011825,1734623445345,-261465.68341608,0.00024998,7]
[346011826,1734623445355,-502.25669779,0.00024999,4]
[346011827,1734623445364,-500.0,0.00024999,4]
[346011828,1734623445375,-500.0,0.00024999,4]
[346011829,1734623445384,-514.92613294,0.00024999,4]
[346011830,1734623445394,-500.0,0.00024999,4]
[346011831,1734623445406,-500.0,0.00024999,4]
[346011832,1734623445416,-500.0,0.00024999,4]
[346011833,1734623445580,-500.0,0.00024999,4]
[346011834,1734623445591,-500.0,0.00024999,4]
[346011835,1734623445600,-500.0,0.00024999,4]
[346011836,1734623445610,-500.0,0.00024999,4]
[346011837,1734623445619,-500.0,0.00024999,4]
[346011838,1734623445628,-571.7,0.00024999,4]
[346011839,1734623445639,-500.0,0.00024999,4]
[346011840,1734623445651,-639.43,0.00024999,4]
[346011841,1734623445661,-500.0,0.00024999,4]
[346011842,1734623445670,-500.0,0.00024999,4]
[346011843,1734623445680,-500.0,0.00024999,4]
[346011844,1734623445690,-524.15,0.00024999,4]
[346011845,1734623445699,-1000.0,0.00024999,2]
[346011846,1734623445709,-500.0,0.00024999,4]
[346011847,1734623445718,-1000.0,0.00024999,2]
[346011848,1734623445727,-500.0,0.00024999,4]
[346011849,1734623445737,-500.0,0.00024999,4]
[346011850,1734623445746,-2000.0,0.00024999,2]
[346011851,1734623445755,-500.0,0.00024999,4]
[346011852,1734623445765,-544.62,0.00024999,4]
[346011853,1734623445774,-545.58,0.00024999,4]
[346011854,1734623445786,-956.49,0.00024999,4]
[346011855,1734623445796,-422.520469,0.00024999,4]
[346011856,1734623445805,-2000.0,0.00024999,2]
[346011857,1734623445814,-581.26,0.00024999,4]
[346011858,1734623445823,-500.0,0.00024999,4]
[346011859,1734623445833,-500.0,0.00024999,4]
[346011860,1734623445841,-500.0,0.00024999,4]
[346011861,1734623445851,-500.0,0.00024999,4]
[346011862,1734623445860,-500.0,0.00024999,4]
[346011863,1734623445869,-500.0,0.00024999,4]
[346011864,1734623445878,-500.0,0.00024999,4]
[346011865,1734623445887,-500.0,0.00024999,4]
[346011866,1734623445896,-500.0,0.00024999,4]
[346011867,1734623445907,-500.0,0.00024999,4]
[346011868,1734623445917,-500.0,0.00024999,4]
[346011869,1734623445926,-500.0,0.00024999,4]
[346011870,1734623445935,-500.0,0.00024999,4]
[346011871,1734623445944,-500.0,0.00024999,4]
[346011872,1734623445953,-500.0,0.00024999,4]
[346011873,1734623445962,-500.0,0.00024999,4]
[346011874,1734623445972,-500.0,0.00024999,4]
[346011875,1734623445981,-1699.85,0.00024999,4]
[346011876,1734623445990,-500.0,0.00024999,4]
[346011877,1734623445999,-500.0,0.00024999,4]
[346011878,1734623446009,-500.0,0.00024999,4]
[346011879,1734623446018,-500.0,0.00024999,4]
[346011880,1734623446028,-500.0,0.00024999,4]
[346011881,1734623446037,-500.0,0.00024999,4]
[346011882,1734623446047,-680.88,0.00024999,4]
[346011883,1734623446056,-500.0,0.00024999,4]
[346011884,1734623446065,-500.0,0.00024999,4]
[346011885,1734623446074,-500.0,0.00024999,4]
[346011886,1734623446084,-500.0,0.00024999,4]
[346011887,1734623446093,-500.0,0.00024999,4]
[346011888,1734623446102,-500.0,0.00024999,4]
[346011889,1734623446111,-533.31,0.00024999,4]
[346011890,1734623446121,-657.95,0.00024999,4]
[346011891,1734623446130,-500.0,0.00024999,4]
[346011893,1734623446139,-500.0,0.00024999,4]
[346011894,1734623446150,-341.85505774,0.00024999,4]
[346011895,1734623446159,-500.0,0.00024999,4]
[346011896,1734623446169,-500.0,0.00024999,4]
[346011897,1734623446178,-500.0,0.00024999,4]
[346011899,1734623446187,-500.0,0.00024999,4]
[346011900,1734623446197,-500.0,0.00024999,4]
[346011901,1734623446207,-500.0,0.00024999,4]
[346011902,1734623446216,-500.0,0.00024999,4]
[346011903,1734623446225,-500.0,0.00024999,4]
[346011904,1734623446235,-718.29,0.00024999,4]
[346011905,1734623446244,-355.3740549,0.00024999,4]
[346011907,1734623446254,-500.0,0.00024999,4]
[346011908,1734623446263,-500.0,0.00024999,4]
[346011909,1734623446272,-500.0,0.00024999,4]
[346011912,1734623446282,-500.0,0.00024999,4]
[346011913,1734623446291,-500.0,0.00024999,4]
[346011914,1734623446300,-500.0,0.00024999,4]
[346011915,1734623446310,-500.0,0.00024999,4]
[346011916,1734623446319,-500.0,0.00024999,4]
[346011917,1734623446328,-500.0,0.00024999,4]
[346011918,1734623446337,-500.0,0.00024999,4]
[346011919,1734623446347,-955.01,0.00024999,4]
[346011920,1734623446356,-500.0,0.00024999,4]
[346011921,1734623446365,-500.0,0.00024999,4]
[346011922,1734623446374,-500.0,0.00024999,4]
[346011923,1734623446383,-500.0,0.00024999,4]
[346011924,1734623446393,-500.0,0.00024999,4]
[346011925,1734623446404,-500.0,0.00024999,4]
[346011926,1734623446413,-500.0,0.00024999,4]
[346011927,1734623446423,-671.42,0.00024999,4]
[346011928,1734623446432,-500.0,0.00024999,4]
[346011929,1734623446442,-500.0,0.00024999,4]
[346011930,1734623446452,-586.28,0.00024999,4]
[346011931,1734623446461,-500.0,0.00024999,4]
[346011932,1734623446470,-500.0,0.00024999,4]
[346011933,1734623446479,-756.34,0.00024999,4]
[346011934,1734623446489,-150.0,0.00024999,2]
[346011935,1734623446498,-500.0,0.00024999,4]
[346011936,1734623446507,-500.0,0.00024999,4]
[346011937,1734623446516,-500.0,0.00024999,4]
[346011938,1734623446524,-150.0,0.00024999,2]
[346011939,1734623446533,-608.9,0.00024999,4]
[346011940,1734623446543,-248.05070404,0.00024999,2]
[346011941,1734623446556,-657.03,0.00024999,4]
[346011942,1734623446565,-7500.0,0.00024999,2]
[346011943,1734623446574,-7500.0,0.00024999,2]
[346011944,1734623446583,-152.557963,0.00024999,4]
[346011945,1734623446592,-7500.0,0.00024999,2]
[346011946,1734623446601,-2598.439561,0.00024999,4]
[346011947,1734623446610,-2128.78352117,0.00024999,2]
[346011948,1734623446619,-500.0,0.00024999,4]
[346011949,1734623446630,-3574.262722,0.00024999,4]
[346011950,1734623446639,-510.28,0.00024999,4]
[346011951,1734623446650,-500.0,0.00024999,4]
[346011952,1734623446659,-500.0,0.00024999,4]
[346011953,1734623446668,-500.0,0.00024999,4]
[346011954,1734623446678,-500.0,0.00024999,4]
[346011955,1734623446687,-320734.02386893,0.00025,3]
[346011956,1734623446696,-1123.39540177,0.00025,2]
[346011957,1734623446705,-8937.42917428,0.00025,3]
[346011958,1734623446714,-1341411.91886022,0.00025,2]
[346011959,1734623446723,-500.0,0.00025,30]
[346011960,1734623446733,-500.0,0.00025,30]
[346011961,1734623446742,-500.0,0.00025,30]
[346011962,1734623446752,-500.0,0.00025,30]
[346011963,1734623446761,-764038.51905228,0.00025,2]
[346011975,1734623447446,-500.0,0.00021917,4]
[346011976,1734623447458,-500.0,0.00022191,4]
[346011977,1734623447469,-500.0,0.00022465,4]
[346011978,1734623447480,-311.76050603,0.00022737,4]
[346011979,1734623447491,-500.0,0.00022737,4]
[346011980,1734623447503,-336.35938426,0.00022737,4]
[346011981,1734623447516,-500.0,0.00022737,4]
[346011982,1734623447527,-500.0,0.00022739,4]
[346011983,1734623447539,-407.18296147,0.00023011,4]
[346011984,1734623447551,-500.0,0.00023011,4]
[346011985,1734623447565,-500.0,0.00023013,4]
[346011986,1734623447577,-500.0,0.00023285,4]
[346011987,1734623447590,-500.0,0.00023287,4]
[346011988,1734623447601,-500.0,0.00023498,4]
[346011989,1734623447614,-500.0,0.00023498,4]
[346011990,1734623447625,-500.0,0.00023559,4]
[346011991,1734623447638,-573.24506278,0.00023561,4]
[346011992,1734623447653,-500.0,0.00023561,4]
[346011993,1734623447664,-500.0,0.00023772,4]
[346011994,1734623447676,-500.0,0.00023833,4]
[346011995,1734623447688,-500.0,0.00023833,4]
[346011996,1734623447700,-500.0,0.00024046,4]
[346011997,1734623447712,-500.0,0.00024107,4]
[346011998,1734623447723,-500.0,0.00024107,4]
[346011999,1734623447734,-500.0,0.0002432,4]
[346012000,1734623447746,-500.0,0.00024381,4]
[346012001,1734623447759,-500.0,0.00024594,4]
[346012002,1734623447772,-166.0,0.000246,2]
[346012003,1734623447783,-500.0,0.00024655,4]
[346012004,1734623447794,-500.0,0.00024868,4]
[346012005,1734623447805,-500.0,0.00024868,4]
[346012006,1734623447815,-391.27731319,0.000249,2]
[346012007,1734623447827,-500.0,0.00024929,4]
[346012008,1734623447842,-723.81,0.00024999,4]
[346012009,1734623447856,-500.0,0.00024999,4]
[346012010,1734623447866,-500.0,0.00024999,4]
[346012011,1734623447876,-1939.06707369,0.00025,2]
[346012012,1734623447889,-6278.6251078,0.00025,2]
[346012013,1734623447902,-7188.67431998,0.00025,2]
[346012014,1734623447915,-23480.61553598,0.00025,2]
[346012015,1734623447948,-500.0,0.00023498,4]
[346012016,1734623447959,-500.0,0.00024381,4]
[346012017,1734623447971,-735.9683544,0.00025,2]
[346012018,1734623447984,-302.5407008,0.00025,2]
[346012019,1734623447997,-583.61253655,0.00025,2]
[346012020,1734623448009,-100315.54978893,0.00025,2]
[346012021,1734623448022,-924.42485307,0.00025,2]
[346012022,1734623448036,-878.0625,0.00025,2]
[346012023,1734623448050,-526.8364965,0.00025,2]
[346012024,1734623448320,-500.0,0.00021917,4]
[346012025,1734623448333,-500.0,0.00022191,4]
[346012026,1734623448344,-500.0,0.00022465,4]
[346012027,1734623448355,-500.0,0.00022737,4]
[346012028,1734623448368,-500.0,0.00022739,4]
[346012029,1734623448383,-500.0,0.00023011,4]
[346012030,1734623448394,-500.0,0.00023013,4]
[346012031,1734623448408,-500.0,0.00023285,4]
[346012032,1734623448419,-500.0,0.00023287,4]
[346012033,1734623448429,-500.0,0.00023498,4]
[346012034,1734623448441,-500.0,0.00023559,4]
[346012035,1734623448453,-500.0,0.00023772,4]
[346012036,1734623448464,-500.0,0.00023772,4]
[346012037,1734623448476,-500.0,0.00023833,4]
[346012038,1734623448487,-500.0,0.00024046,4]
[346012039,1734623448499,-408.87,0.0002432,4]
[346012040,1734623448510,-6497.52788517,0.00025,2]
[346012041,1734623448523,-4692.7587,0.00025,2]
[346012042,1734623448536,-628.65234764,0.00025,2]
[346012043,1734623448554,-1740.68637778,0.00025,2]
[346012044,1734623448597,-500.0,0.00023561,4]
[346012045,1734623448608,-603.14,0.00023835,4]
[346012046,1734623448619,-500.0,0.00024107,4]
[346012047,1734623448630,-500.0,0.00024999,4]
[346012048,1734623448642,-72060.79659189,0.00025,2]
[346012049,1734623448658,-440.28874875,0.00025,2]
[346012050,1734623448672,-1211.26478808,0.00025,2]
[346012051,1734623448686,-799.4,0.00025,2]
[346012052,1734623448700,-32207.58191243,0.00025,2]
[346012053,1734623448713,-119596.61493782,0.00025,2]
[346012054,1734623448732,-5620.0,0.00025,2]
[346012055,1734623448745,-24694.35274747,0.00025,2]
[346012056,1734623448758,-260.9456835,0.00025,2]
[346012057,1734623448781,-500.0,0.00024381,4]
[346012058,1734623448790,-500.0,0.00025,2]
[346012059,1734623448802,-367.03000001,0.00025,2]
[346012060,1734623448813,-574.68795249,0.00025,2]
[346012061,1734623448824,-702.4489965,0.00025,2]
[346012062,1734623448930,-500.0,0.00021917,4]
[346012063,1734623448940,-150.0,0.00023146,2]
[346012064,1734623448950,-500.0,0.00023498,4]
[346012065,1734623448959,-500.0,0.00023772,4]
[346012066,1734623448969,-500.0,0.00024046,4]
[346012067,1734623448979,-500.0,0.0002432,4]
[346012068,1734623448989,-500.0,0.00024594,4]
[346012069,1734623448998,-500.0,0.00024655,4]
[346012070,1734623449008,-500.0,0.00024929,4]
[346012071,1734623449017,-500.0,0.00024999,4]
[346012072,1734623449026,-9596.6426525,0.00025,2]
[346012073,1734623449043,-1213.45,0.00025,2]
[346012074,1734623449054,-107839.0635,0.00025,2]
[346012075,1734623449065,-1725.19601165,0.00025,2]
[346012076,1734623449081,-500.0,0.00022191,4]
[346012077,1734623449091,-1256.3,0.00025,2]
[346012078,1734623449102,-5414.79563223,0.00025,2]
[346012079,1734623449114,-10254.38508579,0.00025,2]
[346012080,1734623449490,-500.0,0.00022465,4]
[346012081,1734623449500,-500.0,0.00022739,4]
[346012082,1734623449509,-500.0,0.00023013,4]
[346012083,1734623449518,-442.12400669,0.00023287,4]
[346012084,1734623449531,-60.37126724,0.00023287,4]
[346012085,1734623449540,-154.0,0.00024,2]
[346012086,1734623449551,-496.61,0.00024561,2]
[346012087,1734623449561,-500.0,0.00024868,4]
[346012088,1734623449570,-500.0,0.00024999,4]
[346012089,1734623449580,-396871.7724234,0.00025,2]
[346012090,1734623449590,-30030.97005383,0.00025,2]
[346012091,1734623449599,-370506.12993401,0.00025,2]
[346012092,1734623462629,-848276.82173454,0.00025,2]
[346012093,1734623462647,-7783.91446882,0.00025,2]
[346012094,1734623462658,-59024.89347522,0.00025,2]
[346012095,1734623462672,-1484.32775553,0.00025,2]
[346012096,1734623462683,-6627.3178648,0.00025,2]
[346012097,1734623462694,-1827.07314723,0.00025,2]
[346012098,1734623462706,-10007.0,0.00025,2]
[346012099,1734623462717,-1713.02122935,0.00025,2]
[346012100,1734623462728,-3286.97877065,0.00025,2]
[346012101,1734623462739,-68321.39662052,0.00025,2]
[346012102,1734623462748,-362110.2877405,0.00025,2]
[346012103,1734623462761,-199899.99999997,0.00025,2]
[346012104,1734623462772,-597.023,0.00025,2]
[346012105,1734623462792,-500.0,0.00023498,4]
[346012106,1734623462801,-14468.5517554,0.00025,2]
[346012107,1734623462813,-5002.4975,0.00025,2]
[346012108,1734623462825,-63409.89640252,0.00025,2]
[346012109,1734623462839,-545.54747246,0.00025,2]
[346012110,1734623462850,-5332.0,0.00025,2]
[346012111,1734623600904,50671.32507029,0.000235,120]
[346012112,1734623671603,5107.32,0.000235,120]
[346012113,1734623709739,5107.2,0.000235,120]
[346012115,1734624108357,156.34,0.00010137,2]
[346012132,1734624631447,-747.45,0.0002018,2]
[346012133,1734624631457,-500.0,0.00021164,2]
[346012134,1734624631467,-210.05821848,0.00021756,2]
[346012135,1734624631476,-1250.0,0.00021817,2]
[346012136,1734624631486,-388.27,0.00021856,2]
[346012137,1734624631495,-250.0,0.00021856,2]
[346012138,1734624631505,-1000.0,0.00021935,2]
[346012139,1734624631514,-200.0,0.00021972,2]
[346012140,1734624631523,-197.75,0.00021988,2]
[346012141,1734624631532,-250.0,0.0002199,2]
[346012142,1734624631542,-1250.0,0.00021991,2]
[346012143,1734624631551,-306.78,0.00022056,2]
[346012144,1734624631560,-250.0,0.00022124,2]
[346012145,1734624631569,-414.46,0.00022165,2]
[346012146,1734624631578,-159.44,0.00022187,2]
[346012147,1734624631587,-207.96,0.00022292,2]
[346012148,1734624631596,-747.45,0.00022444,2]
[346012149,1734624631606,-300.0,0.00022445,2]
[346012150,1734624631615,-501.58,0.00022446,2]
[346012151,1734624631623,-509.77,0.00022446,2]
[346012152,1734624631633,-391.93483125,0.00022446,2]
[346012153,1734624631647,-116.59516875,0.00022446,2]
[346012154,1734624631657,-490.62,0.00022446,2]
[346012155,1734624631666,-505.46,0.00022446,2]
[346012156,1734624631676,-150.0,0.00022488,4]
[346012157,1734624631686,-150.0,0.00022488,4]
[346012158,1734624631695,-498.99,0.00022541,2]
[346012159,1734624631704,-157.6,0.00022575,30]
[346012160,1734624631714,-167.53,0.00022579,2]
[346012161,1734624631723,-490.27,0.0002263,2]
[346012162,1734624631732,-505.18,0.0002263,2]
[346012163,1734624631741,-506.55,0.0002263,2]
[346012164,1734624631751,-501.24,0.0002263,2]
[346012165,1734624631760,-509.12,0.0002263,2]
[346012166,1734624631770,-509.44,0.0002263,2]
[346012167,1734624631779,-506.28,0.0002263,2]
[346012168,1734624631789,-501.03,0.0002263,2]
[346012169,1734624631798,-490.24,0.0002263,2]
[346012170,1734624631807,-496.0,0.0002263,2]
[346012171,1734624631817,-507.53,0.0002263,2]
[346012172,1734624631826,-504.61,0.0002263,2]
[346012173,1734624631835,-505.61,0.0002263,2]
[346012174,1734624631844,-508.13,0.0002263,2]
[346012175,1734624631854,-503.55,0.0002263,2]
[346012176,1734624631863,-547.83605524,0.00022638,2]
[346012177,1734624631872,-388.27,0.00022665,2]
[346012178,1734624631881,-500.0,0.00022737,4]
[346012179,1734624631891,-500.26541667,0.00022737,4]
[346012180,1734624631900,-500.0,0.00022737,4]
[346012181,1734624631910,-1264.0,0.00022738,2]
[346012182,1734624631918,-2008.0,0.00022738,2]
[346012183,1734624631928,-632.0,0.00022738,2]
[346012184,1734624631936,-1897.0,0.00022738,2]
[346012185,1734624631946,-927.0,0.00022738,2]
[346012186,1734624631955,-3768.0,0.00022738,2]
[346012187,1734624631964,-818.0,0.00022738,2]
[346012188,1734624631974,-1255.0,0.00022738,2]
[346012189,1734624631983,-535.0,0.00022738,2]
[346012190,1734624631992,-188.13,0.00022751,2]
[346012191,1734624632183,-685.485,0.00022816,2]
[346012192,1734624632195,-842.04,0.000229,2]
[346012193,1734624632205,-218.9015,0.00022911,2]
[346012194,1734624632215,-310.7621,0.00022911,2]
[346012195,1734624632226,-697.3621,0.00022911,2]
[346012196,1734624632235,-3315.7519,0.00022911,2]
[346012197,1734624632244,-495.01,0.00022917,2]
[346012198,1734624632253,-505.34,0.00022917,2]
[346012199,1734624632263,-500.0,0.00023011,4]
[346012200,1734624632272,-207.96,0.00023117,2]
[346012201,1734624632282,-181.57594021,0.00023356,2]
[346012202,1734624632291,-3035.9949,0.00023459,2]
[346012203,1734624632300,-388.27,0.00023474,2]
[346012204,1734624632311,-500.0,0.00023498,4]
[346012205,1734624632320,-500.0,0.00023498,4]
[346012206,1734624632329,-1438.77,0.00023498,4]
[346012207,1734624632339,-500.0,0.00023498,4]
[346012208,1734624632349,-500.0,0.00023498,4]
[346012209,1734624632359,-500.0,0.00023498,4]
[346012210,1734624632368,-500.0,0.00023498,4]
[346012211,1734624632378,-500.0,0.00023498,4]
[346012212,1734624632387,-500.0,0.00023498,4]
[346012213,1734624632399,-500.0,0.00023498,4]
[346012214,1734624632409,-500.0,0.00023498,4]
[346012215,1734624632418,-500.0,0.00023498,4]
[346012216,1734624632428,-179.08302375,0.00023498,4]
[346012217,1734624632441,-320.91697625,0.00023498,4]
[346012218,1734624632450,-380.34556982,0.00023498,4]
[346012219,1734624632501,-119.65443018,0.00023498,4]
[346012220,1734624632511,-500.0,0.00023498,4]
[346012221,1734624632520,-500.0,0.00023498,4]
[346012222,1734624632530,-500.0,0.00023498,4]
[346012223,1734624632539,-500.0,0.00023498,4]
[346012224,1734624632549,-40.92985933,0.00023498,4]
[346012225,1734624634842,-349.57893753,0.00023498,4]
[346012226,1734624634898,-109.49120314,0.00023498,4]
[346012227,1734624634908,-500.0,0.00023498,4]
[346012228,1734624634917,-500.0,0.00023498,4]
[346012229,1734624634927,-500.0,0.00023498,4]
[346012230,1734624634936,-500.0,0.00023498,4]
[346012231,1734624634945,-500.0,0.00023498,4]
[346012232,1734624634954,-500.0,0.00023498,4]
[346012233,1734624634964,-500.0,0.00023498,4]
[346012234,1734624634974,-500.0,0.00023498,4]
[346012235,1734624634984,-500.0,0.00023498,4]
[346012236,1734624634993,-500.0,0.00023498,4]
[346012237,1734624635003,-500.0,0.00023498,4]
[346012239,1734624635012,-500.0,0.00023498,4]
[346012241,1734624635022,-500.0,0.00023498,4]
[346012243,1734624635031,-500.0,0.00023498,4]
[346012245,1734624635040,-500.0,0.00023498,4]
[346012247,1734624635049,-500.0,0.00023498,4]
[346012249,1734624635059,-500.0,0.00023498,4]
[346012251,1734624635069,-428.07745889,0.00023498,4]
[346012253,1734624635079,-500.0,0.00023498,4]
[346012255,1734624635088,-500.0,0.00023498,4]
[346012257,1734624635098,-500.0,0.00023498,4]
[346012258,1734624635107,-500.0,0.00023498,4]
[346012260,1734624635116,-500.0,0.00023498,4]
[346012262,1734624635126,-500.0,0.00023498,4]
[346012264,1734624635135,-500.0,0.00023498,4]
[346012266,1734624635149,-500.0,0.00023498,4]
[346012268,1734624635159,-500.0,0.00023498,4]
[346012271,1734624635169,-500.0,0.00023498,4]
[346012273,1734624635179,-500.0,0.00023498,4]
[346012274,1734624635190,-500.0,0.00023498,4]
[346012276,1734624635200,-500.0,0.00023498,4]
[346012278,1734624635210,-500.0,0.00023498,4]
[346012280,1734624635219,-500.0,0.00023498,4]
[346012282,1734624635229,-500.0,0.00023498,4]
[346012284,1734624635239,-500.0,0.00023498,4]
[346012286,1734624635248,-1210.11,0.00023498,4]
[346012288,1734624635257,-500.0,0.00023498,4]
[346012290,1734624635267,-1708.37,0.00023498,4]
[346012292,1734624635276,-795.4,0.00023498,4]
[346012294,1734624635285,-150.0,0.00023499,2]
[346012296,1734624635295,-7442.88630795,0.00023671,2]
[346012298,1734624635304,-5000.0,0.00023708,2]
[346012300,1734624635314,-433.223,0.0002375,2]
[346012302,1734624635323,-500.0,0.00023752,2]
[346012304,1734624635332,-500.0,0.00023771,4]
[346012306,1734624635341,-500.0,0.00023771,4]
[346012308,1734624635351,-500.0,0.00023771,4]
[346012310,1734624635361,-500.0,0.00023771,4]
[346012312,1734624635370,-500.0,0.00023771,4]
[346012314,1734624635379,-500.0,0.00023771,4]
[346012316,1734624635388,-500.0,0.00023771,4]
[346012318,1734624635399,-500.0,0.00023771,4]
[346012320,1734624635408,-500.0,0.00023771,4]
[346012322,1734624635417,-500.0,0.00023771,4]
[346012324,1734624635427,-500.0,0.00023771,4]
[346012326,1734624635436,-500.0,0.00023771,4]
[346012328,1734624635446,-500.0,0.00023771,4]
[346012330,1734624635455,-500.0,0.00023771,4]
[346012332,1734624635464,-500.0,0.00023771,4]
[346012334,1734624635473,-500.0,0.00023771,4]
[346012336,1734624635482,-600.0,0.00023771,2]
[346012338,1734624635492,-500.0,0.00023771,2]
[346012340,1734624635501,-500.0,0.00023771,4]
[346012342,1734624635510,-500.0,0.00023771,4]
[346012344,1734624635520,-500.0,0.00023771,4]
[346012345,1734624635529,-523.14,0.00023771,4]
[346012347,1734624635538,-500.0,0.00023771,4]
[346012349,1734624635547,-500.0,0.00023771,4]
[346012351,1734624635556,-557.04,0.00023771,4]
[346012353,1734624635566,-500.0,0.00023771,4]
[346012355,1734624635575,-500.0,0.00023771,4]
[346012357,1734624635584,-500.0,0.00023771,4]
[346012359,1734624635593,-500.0,0.00023771,4]
[346012361,1734624635602,-500.0,0.00023771,4]
[346012363,1734624635611,-500.0,0.00023771,4]
[346012365,1734624635621,-1629.03,0.00023771,4]
[346012367,1734624635630,-500.0,0.00023771,4]
[346012369,1734624635640,-500.0,0.00023771,4]
[346012371,1734624635650,-108.11158075,0.00023771,4]
[346012376,1734624635689,-391.88841925,0.00023771,4]
[346012378,1734624635699,-511.09,0.00023771,4]
[346012380,1734624635709,-502.60687741,0.00023771,4]
[346012382,1734624635719,-500.0,0.00023771,4]
[346012384,1734624635728,-77.43176042,0.00023771,4]
[346012386,1734624635740,-422.56823958,0.00023771,4]
[346012388,1734624635750,-500.0,0.00023771,4]
[346012390,1734624635760,-500.0,0.00023771,4]
[346012392,1734624635770,-188.46408682,0.00023771,4]
[346012538,1734624637361,-311.53591318,0.00023771,4]
[346012540,1734624637371,-915.21,0.00023771,4]
[346012542,1734624637381,-643.44,0.00023771,4]
[346012544,1734624637390,-457.8104691,0.00023771,2]